fUST/lending_fUST_20260524
["ID","MTS","AMOUNT","RATE_DAILY","PERIOD"]
[422871328,1779555380000,7921.35,0.000178,120]
[422871388,1779556232000,-500.0,8.116e-05,2]
[422871362,1779556232000,-469.74779629,7.763e-05,2]
[422871378,1779556232000,-500.0,8.116e-05,2]
[422871380,1779556232000,-500.0,8.116e-05,2]
[422871382,1779556232000,-500.0,8.116e-05,2]
[422871370,1779556232000,-4530.25220371,7.763e-05,2]
[422871372,1779556232000,-446.12074762,7.88e-05,2]
[422871374,1779556232000,-792.317901,7.965e-05,2]
[422871376,1779556232000,-500.0,8.116e-05,2]
[422871385,1779556232000,-500.0,8.116e-05,2]
[422871391,1779556232000,-500.0,8.116e-05,2]
[422871410,1779556232000,-177.64046772,8.211e-05,2]
[422871393,1779556232000,-500.0,8.116e-05,2]
[422871395,1779556232000,-319.68,8.116e-05,2]
[422871418,1779556232000,-500.0,8.211e-05,2]
[422871416,1779556232000,-500.0,8.211e-05,2]
[422871414,1779556232000,-322.35953228,8.211e-05,2]
[422871409,1779556232000,-500.0,8.211e-05,2]
[422871420,1779556232000,-496.41754888,8.211e-05,2]
[422871404,1779556232000,-152.0,8.211e-05,7]
[422871402,1779556232000,-3943.08052298,8.118e-05,2]
[422871406,1779556232000,-227.2790093,8.211e-05,2]
[422871400,1779556232000,-1365.3981,8.118e-05,2]
[422871398,1779556232000,-2022.948832,8.118e-05,2]
[422871509,1779556238000,-3.58245112,8.211e-05,2]
[422871511,1779556238000,-357.13715422,8.211e-05,2]
[422871533,1779556238000,-260.7658872,8.211e-05,2]
[422871537,1779556238000,-500.0,8.211e-05,2]
[422871525,1779556238000,-142.86284578,8.211e-05,2]
[422871539,1779556238000,-500.0,8.211e-05,2]
[422871531,1779556238000,-500.0,8.211e-05,2]
[422871529,1779556238000,-500.0,8.211e-05,2]
[422871535,1779556238000,-500.0,8.211e-05,2]
[422871541,1779556238000,-500.0,8.211e-05,2]
[422871542,1779556238000,-500.0,8.211e-05,2]
[422871544,1779556238000,-500.0,8.211e-05,2]
[422871555,1779556238000,-500.0,8.211e-05,2]
[422871553,1779556238000,-500.0,8.211e-05,2]
[422871551,1779556238000,-500.0,8.211e-05,2]
[422871546,1779556238000,-500.0,8.211e-05,2]
[422871548,1779556238000,-437.03146549,8.211e-05,2]
[422871527,1779556238000,-500.0,8.211e-05,2]
[422871652,1779556239000,-639.02,8.219e-05,2]
[422871646,1779556239000,-500.0,8.219e-05,2]
[422871632,1779556239000,-835.02596117,8.218e-05,2]
[422871631,1779556239000,-835.02596117,8.218e-05,2]
[422871629,1779556239000,-835.02596117,8.218e-05,2]
[422871620,1779556239000,-877.48490836,8.218e-05,2]
[422871622,1779556239000,-877.48490836,8.218e-05,2]
[422871610,1779556239000,-816.26503104,8.218e-05,2]
[422871625,1779556239000,-877.48490836,8.218e-05,2]
[422871619,1779556239000,-816.58135716,8.218e-05,2]
[422871614,1779556239000,-877.48490836,8.218e-05,2]
[422871627,1779556239000,-877.48490836,8.218e-05,2]
[422871648,1779556239000,-500.0,8.219e-05,2]
[422871660,1779556239000,-500.0,8.219e-05,2]
[422871650,1779556239000,-500.0,8.219e-05,2]
[422871640,1779556239000,-337.9,8.219e-05,2]
[422871654,1779556239000,-500.0,8.219e-05,2]
[422871644,1779556239000,-500.0,8.219e-05,2]
[422871656,1779556239000,-500.0,8.219e-05,2]
[422871638,1779556239000,-500.75553415,8.219e-05,2]
[422871636,1779556239000,-500.0,8.219e-05,2]
[422871642,1779556239000,-500.0,8.219e-05,2]
[422871658,1779556239000,-500.0,8.219e-05,2]
[422871661,1779556239000,-411.44250973,8.219e-05,2]
[422871663,1779556239000,-500.0,8.219e-05,2]
[422871672,1779556239000,-500.0,8.219e-05,2]
[422871606,1779556239000,-816.26503104,8.218e-05,2]
[422871678,1779556239000,-500.0,8.219e-05,2]
[422871634,1779556239000,-1371.6288,8.219e-05,2]
[422871666,1779556239000,-500.0,8.219e-05,2]
[422871587,1779556239000,-816.26503104,8.218e-05,2]
[422871616,1779556239000,-60.9035512,8.218e-05,2]
[422871676,1779556239000,-500.0,8.219e-05,2]
[422871557,1779556239000,-500.0,8.211e-05,2]
[422871559,1779556239000,-500.0,8.211e-05,2]
[422871562,1779556239000,-500.0,8.211e-05,2]
[422871560,1779556239000,-500.0,8.211e-05,2]
[422871564,1779556239000,-500.0,8.211e-05,2]
[422871568,1779556239000,-500.0,8.211e-05,2]
[422871566,1779556239000,-500.0,8.211e-05,2]
[422871569,1779556239000,-500.0,8.211e-05,2]
[422871571,1779556239000,-159.44505274,8.212e-05,2]
[422871573,1779556239000,-533.29596101,8.218e-05,2]
[422871575,1779556239000,-2075.00998034,8.218e-05,2]
[422871577,1779556239000,-5938.15334745,8.218e-05,2]
[422871612,1779556239000,-877.48490836,8.218e-05,2]
[422871579,1779556239000,-1496.7472284,8.218e-05,2]
[422871581,1779556239000,-994.6183006,8.218e-05,2]
[422871585,1779556239000,-816.26503104,8.218e-05,2]
[422871589,1779556239000,-816.26503104,8.218e-05,2]
[422871591,1779556239000,-816.26503104,8.218e-05,2]
[422871597,1779556239000,-816.26503104,8.218e-05,2]
[422871599,1779556239000,-816.26503104,8.218e-05,2]
[422871603,1779556239000,-816.26503104,8.218e-05,2]
[422871593,1779556239000,-816.26503104,8.218e-05,2]
[422871600,1779556239000,-816.26503104,8.218e-05,2]
[422871604,1779556239000,-816.26503104,8.218e-05,2]
[422871601,1779556239000,-816.26503104,8.218e-05,2]
[422871595,1779556239000,-816.26503104,8.218e-05,2]
[422871608,1779556239000,-816.26503104,8.218e-05,2]
[422871583,1779556239000,-816.26503104,8.218e-05,2]
[422871680,1779556239000,-500.0,8.219e-05,2]
[422871741,1779556239000,-200.58,8.219e-05,2]
[422871668,1779556239000,-500.0,8.219e-05,2]
[422871756,1779556239000,-500.0,8.219e-05,2]
[422871758,1779556239000,-500.0,8.219e-05,2]
[422871760,1779556239000,-500.0,8.219e-05,2]
[422871762,1779556239000,-500.0,8.219e-05,2]
[422871747,1779556239000,-500.0,8.219e-05,2]
[422871749,1779556239000,-500.0,8.219e-05,2]
[422871751,1779556239000,-265.68,8.219e-05,2]
[422871764,1779556239000,-500.0,8.219e-05,2]
[422871767,1779556239000,-500.0,8.219e-05,2]
[422871769,1779556239000,-500.0,8.219e-05,2]
[422871771,1779556239000,-1413.05,8.219e-05,2]
[422871781,1779556239000,-500.0,8.219e-05,2]
[422871784,1779556239000,-500.0,8.219e-05,2]
[422871745,1779556239000,-500.0,8.219e-05,2]
[422871786,1779556239000,-500.0,8.219e-05,2]
[422871777,1779556239000,-500.0,8.219e-05,2]
[422871790,1779556239000,-1407.47,8.219e-05,2]
[422871779,1779556239000,-500.0,8.219e-05,2]
[422871775,1779556239000,-500.0,8.219e-05,2]
[422871792,1779556239000,-500.0,8.219e-05,2]
[422871794,1779556239000,-500.0,8.219e-05,2]
[422871796,1779556239000,-500.0,8.219e-05,2]
[422871801,1779556239000,-500.0,8.219e-05,2]
[422871802,1779556239000,-500.0,8.219e-05,2]
[422871799,1779556239000,-500.0,8.219e-05,2]
[422871798,1779556239000,-500.0,8.219e-05,2]
[422871800,1779556239000,-500.0,8.219e-05,2]
[422871674,1779556239000,-500.0,8.219e-05,2]
[422871773,1779556239000,-500.0,8.219e-05,2]
[422871743,1779556239000,-500.0,8.219e-05,2]
[422871788,1779556239000,-500.0,8.219e-05,2]
[422871739,1779556239000,-536.11213087,8.219e-05,2]
[422871670,1779556239000,-605.62,8.219e-05,2]
[422871737,1779556239000,-500.0,8.219e-05,2]
[422871682,1779556239000,-500.0,8.219e-05,2]
[422871684,1779556239000,-500.0,8.219e-05,2]
[422871686,1779556239000,-500.0,8.219e-05,2]
[422871688,1779556239000,-2154.19,8.219e-05,2]
[422871692,1779556239000,-500.0,8.219e-05,2]
[422871700,1779556239000,-500.0,8.219e-05,2]
[422871690,1779556239000,-2154.19,8.219e-05,2]
[422871703,1779556239000,-500.0,8.219e-05,2]
[422871705,1779556239000,-500.0,8.219e-05,2]
[422871709,1779556239000,-466.54,8.219e-05,2]
[422871696,1779556239000,-2154.19,8.219e-05,2]
[422871711,1779556239000,-831.69,8.219e-05,2]
[422871707,1779556239000,-500.0,8.219e-05,2]
[422871731,1779556239000,-500.0,8.219e-05,2]
[422871713,1779556239000,-500.0,8.219e-05,2]
[422871698,1779556239000,-2154.19,8.219e-05,2]
[422871715,1779556239000,-387.8,8.219e-05,2]
[422871717,1779556239000,-500.0,8.219e-05,2]
[422871729,1779556239000,-500.0,8.219e-05,2]
[422871727,1779556239000,-257.5,8.219e-05,2]
[422871719,1779556239000,-500.0,8.219e-05,2]
[422871735,1779556239000,-500.0,8.219e-05,2]
[422871733,1779556239000,-500.0,8.219e-05,2]
[422871721,1779556239000,-500.0,8.219e-05,2]
[422871694,1779556239000,-2154.19,8.219e-05,2]
[422871725,1779556239000,-155.5290541,8.219e-05,2]
[422871723,1779556239000,-500.0,8.219e-05,2]
[422871880,1779556240000,-152.0,8.223e-05,7]
[422871892,1779556240000,-300.0,8.277e-05,2]
[422871868,1779556240000,-500.0,8.219e-05,2]
[422871890,1779556240000,-300.0,8.277e-05,2]
[422871886,1779556240000,-300.0,8.277e-05,2]
[422871882,1779556240000,-300.0,8.277e-05,2]
[422871872,1779556240000,-500.0,8.219e-05,2]
[422871888,1779556240000,-300.0,8.277e-05,2]
[422871878,1779556240000,-500.0,8.219e-05,2]
[422871870,1779556240000,-500.0,8.219e-05,2]
[422871874,1779556240000,-500.0,8.219e-05,2]
[422871894,1779556240000,-300.0,8.277e-05,2]
[422871876,1779556240000,-1531.83,8.219e-05,2]
[422871898,1779556240000,-300.0,8.277e-05,2]
[422871922,1779556240000,-154.56675,8.489e-05,2]
[422871900,1779556240000,-300.0,8.277e-05,2]
[422871896,1779556240000,-300.0,8.277e-05,2]
[422871907,1779556240000,-300.0,8.277e-05,2]
[422871902,1779556240000,-300.0,8.277e-05,2]
[422871904,1779556240000,-300.0,8.277e-05,2]
[422871915,1779556240000,-154.56675,8.489e-05,2]
[422871909,1779556240000,-300.0,8.277e-05,2]
[422871911,1779556240000,-792.317901,8.3e-05,2]
[422871913,1779556240000,-154.56675,8.489e-05,2]
[422871917,1779556240000,-154.56675,8.489e-05,2]
[422871919,1779556240000,-154.56675,8.489e-05,2]
[422871924,1779556240000,-154.56675,8.489e-05,2]
[422871930,1779556240000,-154.56675,8.489e-05,2]
[422871866,1779556240000,-500.0,8.219e-05,2]
[422871905,1779556240000,-300.0,8.277e-05,2]
[422871864,1779556240000,-500.0,8.219e-05,2]
[422871807,1779556240000,-500.0,8.219e-05,2]
[422871862,1779556240000,-500.0,8.219e-05,2]
[422871939,1779556240000,-154.56675,8.489e-05,2]
[422871806,1779556240000,-500.0,8.219e-05,2]
[422871810,1779556240000,-500.0,8.219e-05,2]
[422871814,1779556240000,-981.23,8.219e-05,2]
[422871812,1779556240000,-169.3,8.219e-05,2]
[422871804,1779556240000,-1496.9,8.219e-05,2]
[422871815,1779556240000,-500.0,8.219e-05,2]
[422871817,1779556240000,-500.0,8.219e-05,2]
[422871821,1779556240000,-500.0,8.219e-05,2]
[422871819,1779556240000,-500.0,8.219e-05,2]
[422871826,1779556240000,-500.0,8.219e-05,2]
[422871824,1779556240000,-500.0,8.219e-05,2]
[422871823,1779556240000,-500.0,8.219e-05,2]
[422871830,1779556240000,-500.0,8.219e-05,2]
[422871860,1779556240000,-500.0,8.219e-05,2]
[422871838,1779556240000,-500.84073999,8.219e-05,2]
[422871828,1779556240000,-1009.24,8.219e-05,2]
[422871840,1779556240000,-500.0,8.219e-05,2]
[422871832,1779556240000,-500.0,8.219e-05,2]
[422871836,1779556240000,-683.6,8.219e-05,2]
[422871841,1779556240000,-500.0,8.219e-05,2]
[422871854,1779556240000,-500.0,8.219e-05,2]
[422871843,1779556240000,-500.0,8.219e-05,2]
[422871845,1779556240000,-8608.48,8.219e-05,2]
[422871847,1779556240000,-500.0,8.219e-05,2]
[422871856,1779556240000,-1673.72,8.219e-05,2]
[422871849,1779556240000,-500.0,8.219e-05,2]
[422871852,1779556240000,-723.33,8.219e-05,2]
[422871851,1779556240000,-500.0,8.219e-05,2]
[422871858,1779556240000,-500.0,8.219e-05,2]
[422871834,1779556240000,-517.78,8.219e-05,2]
[422871928,1779556240000,-154.56675,8.489e-05,2]
[422871884,1779556240000,-300.0,8.277e-05,2]
[422871935,1779556240000,-154.56675,8.489e-05,2]
[422872009,1779556240000,-500.0,8.493e-05,2]
[422871998,1779556240000,-504.43,8.493e-05,2]
[422872000,1779556240000,-831.69,8.493e-05,2]
[422872011,1779556240000,-500.0,8.493e-05,2]
[422872002,1779556240000,-500.0,8.493e-05,2]
[422872016,1779556240000,-500.0,8.493e-05,2]
[422872013,1779556240000,-500.0,8.493e-05,2]
[422872004,1779556240000,-500.0,8.493e-05,2]
[422872014,1779556240000,-629.57,8.493e-05,2]
[422872006,1779556240000,-500.0,8.493e-05,2]
[422872020,1779556240000,-500.0,8.493e-05,2]
[422872018,1779556240000,-584.01,8.493e-05,2]
[422872022,1779556240000,-500.0,8.493e-05,2]
[422872026,1779556240000,-500.0,8.493e-05,2]
[422871996,1779556240000,-500.0,8.493e-05,2]
[422872036,1779556240000,-500.0,8.493e-05,2]
[422872034,1779556240000,-1413.05,8.493e-05,2]
[422872028,1779556240000,-500.0,8.493e-05,2]
[422872042,1779556240000,-500.0,8.493e-05,2]
[422872030,1779556240000,-500.0,8.493e-05,2]
[422872032,1779556240000,-173.64,8.493e-05,2]
[422872040,1779556240000,-500.0,8.493e-05,2]
[422872038,1779556240000,-416.0,8.493e-05,2]
[422872044,1779556240000,-500.0,8.493e-05,2]
[422872046,1779556240000,-500.0,8.493e-05,2]
[422872050,1779556240000,-1407.47,8.493e-05,2]
[422872052,1779556240000,-500.0,8.493e-05,2]
[422872054,1779556240000,-500.0,8.493e-05,2]
[422872056,1779556240000,-500.0,8.493e-05,2]
[422871931,1779556240000,-154.56675,8.489e-05,2]
[422872024,1779556240000,-572.92,8.493e-05,2]
[422871990,1779556240000,-500.0,8.493e-05,2]
[422872048,1779556240000,-500.0,8.493e-05,2]
[422871986,1779556240000,-500.0,8.493e-05,2]
[422871988,1779556240000,-500.0,8.493e-05,2]
[422871921,1779556240000,-154.56675,8.489e-05,2]
[422871926,1779556240000,-154.56675,8.489e-05,2]
[422871933,1779556240000,-154.56675,8.489e-05,2]
[422871941,1779556240000,-154.56675,8.489e-05,2]
[422871943,1779556240000,-154.56675,8.489e-05,2]
[422871944,1779556240000,-154.56675,8.489e-05,2]
[422871948,1779556240000,-154.56675,8.489e-05,2]
[422871946,1779556240000,-154.56675,8.489e-05,2]
[422871958,1779556240000,-1371.6288,8.493e-05,2]
[422871961,1779556240000,-500.0,8.493e-05,2]
[422871960,1779556240000,-500.0,8.493e-05,2]
[422871954,1779556240000,-2154.19,8.492e-05,2]
[422871950,1779556240000,-154.56675,8.489e-05,2]
[422871963,1779556240000,-500.0,8.493e-05,2]
[422871937,1779556240000,-154.56675,8.489e-05,2]
[422871965,1779556240000,-500.0,8.493e-05,2]
[422871952,1779556240000,-2154.19,8.492e-05,2]
[422871994,1779556240000,-500.0,8.493e-05,2]
[422871984,1779556240000,-500.0,8.493e-05,2]
[422871983,1779556240000,-500.0,8.493e-05,2]
[422871974,1779556240000,-500.0,8.493e-05,2]
[422872058,1779556240000,-500.0,8.493e-05,2]
[422871981,1779556240000,-500.0,8.493e-05,2]
[422871977,1779556240000,-500.0,8.493e-05,2]
[422871956,1779556240000,-2154.19,8.492e-05,2]
[422871975,1779556240000,-500.0,8.493e-05,2]
[422871969,1779556240000,-500.0,8.493e-05,2]
[422871967,1779556240000,-500.0,8.493e-05,2]
[422871992,1779556240000,-409.96,8.493e-05,2]
[422871971,1779556240000,-174.72,8.493e-05,2]
[422871979,1779556240000,-500.0,8.493e-05,2]
[422872121,1779556241000,-500.0,8.493e-05,2]
[422872111,1779556241000,-723.33,8.493e-05,2]
[422872108,1779556241000,-500.0,8.493e-05,2]
[422872143,1779556241000,-500.0,8.493e-05,2]
[422872154,1779556241000,-500.0,8.761e-05,2]
[422872146,1779556241000,-1531.83,8.493e-05,2]
[422872142,1779556241000,-458.32496188,8.493e-05,2]
[422872144,1779556241000,-500.0,8.493e-05,2]
[422872150,1779556241000,-164.9961,8.63e-05,2]
[422872158,1779556241000,-2154.19,8.766e-05,2]
[422872156,1779556241000,-2154.19,8.766e-05,2]
[422872122,1779556241000,-500.0,8.493e-05,2]
[422872179,1779556241000,-500.0,8.767e-05,2]
[422872152,1779556241000,-792.317901,8.635e-05,2]
[422872160,1779556241000,-2154.19,8.766e-05,2]
[422872162,1779556241000,-1371.6288,8.767e-05,2]
[422872164,1779556241000,-500.0,8.767e-05,2]
[422872168,1779556241000,-505.42,8.767e-05,2]
[422872183,1779556241000,-500.0,8.767e-05,2]
[422872185,1779556241000,-500.0,8.767e-05,2]
[422872181,1779556241000,-500.0,8.767e-05,2]
[422872170,1779556241000,-402.82,8.767e-05,2]
[422872188,1779556241000,-500.0,8.767e-05,2]
[422872115,1779556241000,-1673.72,8.493e-05,2]
[422872187,1779556241000,-500.0,8.767e-05,2]
[422872148,1779556241000,-500.0,8.493e-05,2]
[422872113,1779556241000,-500.0,8.493e-05,2]
[422872086,1779556241000,-308.05,8.493e-05,2]
[422872109,1779556241000,-500.0,8.493e-05,2]
[422872191,1779556241000,-189.42,8.767e-05,2]
[422872062,1779556241000,-500.0,8.493e-05,2]
[422872064,1779556241000,-500.0,8.493e-05,2]
[422872070,1779556241000,-500.0,8.493e-05,2]
[422872068,1779556241000,-500.0,8.493e-05,2]
[422872066,1779556241000,-1496.9,8.493e-05,2]
[422872074,1779556241000,-981.23,8.493e-05,2]
[422872072,1779556241000,-500.0,8.493e-05,2]
[422872060,1779556241000,-500.0,8.493e-05,2]
[422872078,1779556241000,-500.0,8.493e-05,2]
[422872080,1779556241000,-500.0,8.493e-05,2]
[422872082,1779556241000,-500.0,8.493e-05,2]
[422872089,1779556241000,-324.62,8.493e-05,2]
[422872091,1779556241000,-1009.24,8.493e-05,2]
[422872084,1779556241000,-500.0,8.493e-05,2]
[422872096,1779556241000,-683.6,8.493e-05,2]
[422872094,1779556241000,-500.0,8.493e-05,2]
[422872098,1779556241000,-500.0,8.493e-05,2]
[422872093,1779556241000,-505.34,8.493e-05,2]
[422872102,1779556241000,-500.0,8.493e-05,2]
[422872100,1779556241000,-500.0,8.493e-05,2]
[422872104,1779556241000,-8608.48,8.493e-05,2]
[422872106,1779556241000,-500.0,8.493e-05,2]
[422872124,1779556241000,-41.67503812,8.493e-05,2]
[422872117,1779556241000,-500.0,8.493e-05,2]
[422872119,1779556241000,-500.0,8.493e-05,2]
[422872175,1779556241000,-500.0,8.767e-05,2]
[422872076,1779556241000,-500.0,8.493e-05,2]
[422872177,1779556241000,-500.0,8.767e-05,2]
[422872261,1779556241000,-500.0,8.767e-05,2]
[422872263,1779556241000,-500.0,8.767e-05,2]
[422872264,1779556241000,-500.0,8.767e-05,2]
[422872249,1779556241000,-500.0,8.767e-05,2]
[422872251,1779556241000,-1496.9,8.767e-05,2]
[422872253,1779556241000,-500.0,8.767e-05,2]
[422872266,1779556241000,-500.0,8.767e-05,2]
[422872268,1779556241000,-500.0,8.767e-05,2]
[422872270,1779556241000,-1009.24,8.767e-05,2]
[422872284,1779556241000,-500.0,8.767e-05,2]
[422872272,1779556241000,-500.0,8.767e-05,2]
[422872274,1779556241000,-683.6,8.767e-05,2]
[422872259,1779556241000,-981.23,8.767e-05,2]
[422872276,1779556241000,-500.0,8.767e-05,2]
[422872287,1779556241000,-500.0,8.767e-05,2]
[422872291,1779556241000,-723.33,8.767e-05,2]
[422872278,1779556241000,-500.0,8.767e-05,2]
[422872302,1779556241000,-500.0,8.767e-05,2]
[422872280,1779556241000,-500.0,8.767e-05,2]
[422872289,1779556241000,-500.0,8.767e-05,2]
[422872293,1779556241000,-500.0,8.767e-05,2]
[422872295,1779556241000,-1673.72,8.767e-05,2]
[422872297,1779556241000,-500.0,8.767e-05,2]
[422872298,1779556241000,-500.0,8.767e-05,2]
[422872300,1779556241000,-500.0,8.767e-05,2]
[422872173,1779556241000,-500.0,8.767e-05,2]
[422872282,1779556241000,-8608.48,8.767e-05,2]
[422872257,1779556241000,-500.0,8.767e-05,2]
[422872255,1779556241000,-500.0,8.767e-05,2]
[422872245,1779556241000,-500.0,8.767e-05,2]
[422872200,1779556241000,-195.66,8.767e-05,2]
[422872211,1779556241000,-500.0,8.767e-05,2]
[422872205,1779556241000,-154.03,8.767e-05,2]
[422872192,1779556241000,-500.0,8.767e-05,2]
[422872195,1779556241000,-500.0,8.767e-05,2]
[422872198,1779556241000,-831.69,8.767e-05,2]
[422872247,1779556241000,-500.0,8.767e-05,2]
[422872213,1779556241000,-500.0,8.767e-05,2]
[422872202,1779556241000,-594.41,8.767e-05,2]
[422872216,1779556241000,-500.0,8.767e-05,2]
[422872197,1779556241000,-177.63,8.767e-05,2]
[422872206,1779556241000,-500.0,8.767e-05,2]
[422872208,1779556241000,-500.0,8.767e-05,2]
[422872215,1779556241000,-343.19,8.767e-05,2]
[422872230,1779556241000,-500.0,8.767e-05,2]
[422872218,1779556241000,-500.0,8.767e-05,2]
[422872241,1779556241000,-500.0,8.767e-05,2]
[422872228,1779556241000,-500.0,8.767e-05,2]
[422872239,1779556241000,-500.0,8.767e-05,2]
[422872221,1779556241000,-1413.05,8.767e-05,2]
[422872243,1779556241000,-500.0,8.767e-05,2]
[422872222,1779556241000,-500.0,8.767e-05,2]
[422872226,1779556241000,-500.0,8.767e-05,2]
[422872225,1779556241000,-500.0,8.767e-05,2]
[422872232,1779556241000,-500.0,8.767e-05,2]
[422872234,1779556241000,-1407.47,8.767e-05,2]
[422872236,1779556241000,-500.0,8.767e-05,2]
[422872327,1779556242000,-500.0,9.041e-05,2]
[422872324,1779556242000,-1371.6288,9.041e-05,2]
[422872325,1779556242000,-500.0,9.041e-05,2]
[422872322,1779556242000,-2154.19,9.04e-05,2]
[422872320,1779556242000,-2154.19,9.04e-05,2]
[422872318,1779556242000,-792.317901,8.97e-05,2]
[422872310,1779556242000,-1531.83,8.767e-05,2]
[422872316,1779556242000,-150.307,8.835e-05,2]
[422872312,1779556242000,-500.0,8.767e-05,2]
[422872304,1779556242000,-500.0,8.767e-05,2]
[422872314,1779556242000,-569.9,8.835e-05,2]
[422872306,1779556242000,-500.0,8.767e-05,2]
[422872338,1779556242000,-152.0,8.206e-05,7]
[422872308,1779556242000,-500.0,8.767e-05,2]
[422872328,1779556242000,-500.0,9.041e-05,2]
[422872343,1779556242000,-500.0,9.041e-05,2]
[422872326,1779556242000,-500.0,9.041e-05,2]
[422872354,1779556242000,-500.0,9.041e-05,2]
[422872329,1779556242000,-500.0,9.041e-05,2]
[422872357,1779556242000,-136.34338489,9.041e-05,2]
[422872356,1779556242000,-500.0,9.041e-05,2]
[422872345,1779556242000,-174.14,9.041e-05,2]
[422872350,1779556242000,-161.72533562,9.041e-05,2]
[422872347,1779556242000,-128.51355536,9.041e-05,2]
[422872349,1779556242000,-371.48644464,9.041e-05,2]
[422872342,1779556242000,-500.0,9.041e-05,2]
[422872340,1779556242000,-94.94819374,9.041e-05,2]
[422872334,1779556242000,-308.32767543,9.041e-05,2]
[422872330,1779556242000,-500.0,9.041e-05,2]
[422872331,1779556242000,-96.72413083,9.041e-05,2]
[422872352,1779556242000,-669.96466438,9.041e-05,2]
[422872586,1779556244000,-500.0,9.041e-05,2]
[422872594,1779556244000,-1496.9,9.041e-05,2]
[422872592,1779556244000,-500.0,9.041e-05,2]
[422872590,1779556244000,-500.0,9.041e-05,2]
[422872599,1779556244000,-500.0,9.041e-05,2]
[422872595,1779556244000,-500.0,9.041e-05,2]
[422872597,1779556244000,-500.0,9.041e-05,2]
[422872612,1779556244000,-500.0,9.041e-05,2]
[422872602,1779556244000,-500.0,9.041e-05,2]
[422872600,1779556244000,-981.23,9.041e-05,2]
[422872615,1779556244000,-500.0,9.041e-05,2]
[422872603,1779556244000,-500.0,9.041e-05,2]
[422872618,1779556244000,-486.11,9.041e-05,2]
[422872616,1779556244000,-500.0,9.041e-05,2]
[422872605,1779556244000,-500.0,9.041e-05,2]
[422872610,1779556244000,-1009.24,9.041e-05,2]
[422872607,1779556244000,-500.0,9.041e-05,2]
[422872608,1779556244000,-500.0,9.041e-05,2]
[422872613,1779556244000,-683.6,9.041e-05,2]
[422872587,1779556244000,-500.0,9.041e-05,2]
[422872576,1779556244000,-618.03,9.041e-05,2]
[422872584,1779556244000,-500.0,9.041e-05,2]
[422872621,1779556244000,-500.0,9.041e-05,2]
[422872550,1779556244000,-5000.0,8.136e-05,2]
[422872553,1779556244000,-500.0,9.041e-05,2]
[422872563,1779556244000,-1458.90511945,9.041e-05,2]
[422872565,1779556244000,-846.18279655,9.041e-05,2]
[422872567,1779556244000,-1666.0732445,9.041e-05,2]
[422872569,1779556244000,-639.0146715,9.041e-05,2]
[422872555,1779556244000,-500.0,9.041e-05,2]
[422872552,1779556244000,-363.65661511,9.041e-05,2]
[422872589,1779556244000,-500.0,9.041e-05,2]
[422872571,1779556244000,-500.0,9.041e-05,2]
[422872557,1779556244000,-500.0,9.041e-05,2]
[422872560,1779556244000,-2305.087916,9.041e-05,2]
[422872558,1779556244000,-1413.05,9.041e-05,2]
[422872562,1779556244000,-2305.087916,9.041e-05,2]
[422872574,1779556244000,-500.0,9.041e-05,2]
[422872579,1779556244000,-500.0,9.041e-05,2]
[422872581,1779556244000,-1407.47,9.041e-05,2]
[422872577,1779556244000,-500.0,9.041e-05,2]
[422872582,1779556244000,-500.0,9.041e-05,2]
[422872572,1779556244000,-500.0,9.041e-05,2]
[422872620,1779556244000,-8608.48,9.041e-05,2]
[422872656,1779556244000,-500.0,9.07e-05,2]
[422872623,1779556244000,-500.0,9.041e-05,2]
[422872674,1779556244000,-2977.37565717,9.123e-05,2]
[422872675,1779556244000,-5876.7333749,9.187e-05,2]
[422872669,1779556244000,-7022.62434283,9.123e-05,2]
[422872672,1779556244000,-500.0,8.219e-05,2]
[422872678,1779556244000,-354.428,9.187e-05,2]
[422872667,1779556244000,-2154.19,9.123e-05,2]
[422872679,1779556244000,-354.428,9.187e-05,2]